lending/lending_fUSD_20251124
["ID","MTS","AMOUNT","RATE_DAILY","PERIOD"]
[394849467,1764016769459,203.54323835,0.00021114,2]
[394849468,1764016769595,5632.0949,0.00015699,2]
[394849469,1764016782230,1000.0,0.00015699,2]
[394849470,1764016789702,-3000000.0,0.00042031,7]
[394849471,1764016789942,9000.01,0.00015699,2]
[394849472,1764016789967,10000.01,0.00015699,2]
[394849473,1764016789991,10000.01,0.00015699,2]
[394849474,1764016790016,10000.01,0.00015699,2]
[394849475,1764016790044,10000.01,0.00015699,2]
[394849476,1764016790069,10000.01,0.00015699,2]
[394849477,1764016790094,10000.01,0.00015699,2]
[394849478,1764016790118,10000.01,0.00015699,2]
[394849479,1764016790144,10000.01,0.00015699,2]
[394849480,1764016790168,10000.01,0.00015699,2]
[394849481,1764016790198,660999.9,0.00015699,2]
[394849482,1764016793961,-3000000.0,0.00042031,7]
[394849483,1764016800072,-6000000.0,0.00042031,7]
[394849484,1764016932787,5632.0949,0.00015699,2]
[394849485,1764016959516,4367.9151,0.00015699,2]
[394849486,1764016959542,10000.01,0.00015699,2]
[394849487,1764016959567,10000.01,0.00015699,2]
[394849488,1764016959591,10000.01,0.00015699,2]
[394849489,1764016959614,10000.01,0.00015699,2]
[394849490,1764016959641,10000.01,0.00015699,2]
[394849491,1764016959666,10000.01,0.00015699,2]
[394849492,1764016959690,10000.01,0.00015699,2]
[394849493,1764016959714,10000.01,0.00015699,2]
[394849494,1764016959738,10000.01,0.00015699,2]
[394849495,1764016959763,665631.9949,0.00015699,2]
[394849516,1764017431485,-500.0,0.00015798,2]
[394849517,1764017431497,-504.68813291,0.00015798,2]
[394849518,1764017431507,-547.40314688,0.00015798,2]
[394849519,1764017431517,-250.0,0.00015848,2]
[394849520,1764017431527,-1200.0,0.00015897,2]
[394849521,1764017431538,-500.0,0.00015898,2]
[394849522,1764017431547,-500.0,0.00015898,2]
[394849523,1764017431557,-500.0,0.00015898,2]
[394849524,1764017431567,-146.61074167,0.00017376,2]
[394849525,1764017431592,-153.38925833,0.00017376,2]
[394849526,1764017431601,-300.0,0.00017376,2]
[394849527,1764017431611,-1200.0,0.00017377,2]
[394849528,1764017431621,-300.0,0.00017378,2]
[394849529,1764017431630,-300.0,0.00017378,2]
[394849530,1764017431640,-300.0,0.00017378,2]
[394849531,1764017431650,-250.0,0.00017378,2]
[394849532,1764017431660,-300.0,0.00017378,2]
[394849533,1764017431670,-300.0,0.00017378,2]
[394849534,1764017431679,-250.0,0.00017378,2]
[394849535,1764017431688,-1433.0,0.0001747,2]
[394849536,1764017431698,-150.99,0.00018533,2]
[394849537,1764017431709,-5596.54,0.00018533,2]
[394849538,1764017431718,-1712.44,0.00018533,2]
[394849539,1764017431728,-420.0,0.00018971,2]
[394849540,1764017431737,-420.0,0.00018971,2]
[394849541,1764017431747,-153.665814,0.00019178,2]
[394849542,1764017431756,-592.0,0.00020391,2]
[394849544,1764017431765,-2429.07698323,0.00020392,2]
[394849546,1764017431774,-2000.0,0.00020551,2]
[394849548,1764017431783,-2000.0,0.00020551,2]
[394849550,1764017431792,-2000.0,0.00020551,2]
[394849552,1764017431802,-565.289,0.00020551,2]
[394849554,1764017431811,-1000.0,0.00020551,2]
[394849556,1764017431820,-1000.0,0.00020551,2]
[394849558,1764017431829,-1000.0,0.00020551,2]
[394849559,1764017431838,-1000.0,0.00020551,2]
[394849560,1764017431847,-1000.0,0.00020551,2]
[394849561,1764017431856,-1000.0,0.00020551,2]
[394849562,1764017431866,-1000.0,0.00020551,2]
[394849563,1764017431875,-650.887,0.00020551,2]
[394849564,1764017431885,-891.369,0.00020551,2]
[394849566,1764017431896,-587.0,0.00020713,2]
[394849568,1764017431906,-180.0,0.00020713,2]
[394849570,1764017431916,-162.95436659,0.0002074,2]
[394849571,1764017431925,-2000.0,0.00021049,2]
[394849572,1764017431934,-2000.0,0.00021049,2]
[394849573,1764017431944,-2000.0,0.00021049,2]
[394849574,1764017431953,-888.0,0.00021285,2]
[394849575,1764017431964,-888.0,0.00021297,2]
[394849576,1764017431974,-888.0,0.00021493,2]
[394849577,1764017431983,-888.0,0.00021619,2]
[394849578,1764017431993,-888.0,0.00021659,2]
[394849579,1764017432003,-888.0,0.00021759,2]
[394849580,1764017432013,-888.0,0.00021842,2]
[394849581,1764017432022,-327.99805926,0.00021918,2]
[394849582,1764017432032,-361.95035069,0.00021918,2]
[394849583,1764017432041,-500.0,0.00021925,2]
[394849584,1764017432051,-155.0,0.00022,2]
[394849585,1764017432060,-888.0,0.00022037,2]
[394849586,1764017432069,-888.0,0.00022059,2]
[394849587,1764017432079,-888.0,0.00022066,2]
[394849588,1764017432088,-888.0,0.00022211,2]
[394849589,1764017432098,-888.0,0.00022234,2]
[394849590,1764017432107,-888.0,0.00022241,2]
[394849591,1764017432117,-888.0,0.000223,2]
[394849592,1764017432126,-888.0,0.00022322,2]
[394849593,1764017432136,-888.0,0.00022369,2]
[394849594,1764017432145,-888.0,0.00022578,2]
[394849595,1764017432154,-823.0,0.00022614,2]
[394849596,1764017432163,-165.9,0.00022642,2]
[394849597,1764017432173,-888.0,0.00022667,2]
[394849598,1764017432183,-888.0,0.00022726,2]
[394849599,1764017432192,-888.0,0.00022792,2]
[394849600,1764017432201,-888.0,0.0002298,2]
[394849601,1764017432212,-888.0,0.00022997,2]
[394849602,1764017432222,-155.0,0.00023014,7]
[394849603,1764017432231,-888.0,0.00023071,2]
[394849604,1764017432240,-888.0,0.00023361,2]
[394849605,1764017432249,-888.0,0.00023368,2]
[394849606,1764017432259,-12771.61,0.00023727,2]
[394849607,1764017432268,-425.47,0.00023727,2]
[394849608,1764017432277,-1500.0,0.00023802,2]
[394849609,1764017432286,-13828.61,0.00023827,2]
[394849610,1764017432295,-999.0,0.00023827,3]
[394849611,1764017432304,-192.05780362,0.00023827,2]
[394849612,1764017432314,-950.0,0.00023856,2]
[394849613,1764017432323,-426.8933355,0.00024396,2]
[394849614,1764017432333,-151.0,0.00024658,7]
[394849615,1764017432343,-151.0,0.00024658,7]
[394849616,1764017432353,-151.0,0.00024658,7]
[394849617,1764017432362,-151.0,0.00024658,7]
[394849618,1764017432371,-1152.0,0.0002469,2]
[394849619,1764017432381,-500.0,0.0002475,2]
[394849620,1764017432391,-151.0,0.000248,7]
[394849621,1764017432400,-151.0,0.000248,7]
[394849622,1764017432409,-151.0,0.000248,7]
[394849623,1764017432419,-155.779725,0.000248,7]
[394849624,1764017432428,-150.0,0.00024882,2]
[394849625,1764017432437,-150.0,0.00024882,2]
[394849626,1764017432446,-151.86275817,0.00024882,2]
[394849627,1764017432455,-150.0,0.00024882,2]
[394849628,1764017432466,-150.0,0.00024882,2]
[394849629,1764017432475,-252.53085637,0.00024882,2]
[394849630,1764017432485,-272.56817401,0.00024882,2]
[394849631,1764017432494,-150.0,0.00024882,2]
[394849632,1764017432506,-150.0,0.00024882,2]
[394849633,1764017432515,-150.0,0.00024882,2]
[394849634,1764017432524,-150.0,0.00024882,2]
[394849635,1764017432533,-150.0,0.00024882,2]
[394849636,1764017432542,-773.00472776,0.00024995,2]
[394849637,1764017432553,-2564.24106477,0.00024996,2]
[394849638,1764017432563,-200.0,0.00025019,2]
[394849639,1764017432572,-200.0,0.00025019,2]
[394849640,1764017432583,-200.0,0.00025019,2]
[394849641,1764017432592,-248.05767948,0.00025019,2]
[394849642,1764017432602,-150.0,0.00025019,2]
[394849643,1764017432611,-150.0,0.00025019,2]
[394849644,1764017432620,-150.0,0.00025156,2]
[394849645,1764017432629,-200.0,0.00025156,2]
[394849646,1764017432639,-150.0,0.00025293,2]
[394849647,1764017432648,-500.0,0.00025298,2]
[394849648,1764017432657,-500.0,0.00025391,120]
[394849649,1764017432666,-150.0,0.0002543,2]
[394849650,1764017432676,-250.0,0.00025567,2]
[394849651,1764017432685,-1613.0,0.00026957,2]
[394849652,1764017432694,-167.0,0.00027,7]
[394849653,1764017432704,-203.78543975,0.00027191,2]
[394849654,1764017432714,-151.0,0.00027397,2]
[394849655,1764017432724,-192.74238363,0.00027397,2]
[394849656,1764017432734,-752.10773,0.00027397,2]
[394849657,1764017432743,-166.13,0.000277,17]
[394849658,1764017432752,-1232.168,0.000277,17]
[394849659,1764017432762,-500.0,0.00027712,120]
[394849660,1764017432771,-2293.06,0.00027721,2]
[394849661,1764017432780,-2757.93264726,0.00027822,2]
[394849662,1764017432789,-3532.298,0.00027824,2]
[394849663,1764017432799,-609.0,0.00027824,2]
[394849664,1764017432808,-822.0,0.00027824,2]
[394849665,1764017432817,-1601.0,0.00027824,2]
[394849666,1764017432826,-1192.0,0.00027824,2]
[394849667,1764017432835,-908.0,0.00027824,2]
[394849668,1764017432844,-659.0,0.00027824,2]
[394849669,1764017432853,-1256.0,0.00027824,2]
[394849670,1764017432862,-1562.349,0.00027824,2]
[394849671,1764017432871,-6494.0,0.00027824,2]
[394849672,1764017432881,-500.0,0.00028102,5]
[394849673,1764017432890,-191.53,0.00028493,2]
[394849674,1764017432899,-601.32,0.00029084,2]
[394849675,1764017432909,-1009.0,0.000293,2]
[394849676,1764017432918,-1000.0,0.000293,2]
[394849677,1764017432928,-1000.0,0.000293,2]
[394849678,1764017432937,-752.10773,0.00029397,2]
[394849679,1764017432946,-2258.0,0.00029432,2]
[394849680,1764017432956,-213.57929247,0.00029542,2]
[394849681,1764017432967,-1000.0,0.00029844,2]
[394849682,1764017432975,-500.0,0.00030032,120]
[394849683,1764017432985,-538.18070999,0.0003013,30]
[394849684,1764017432995,-500.0,0.00030287,5]
[394849685,1764017433004,-500.0,0.00030287,5]
[394849686,1764017433014,-500.0,0.00030287,5]
[394849687,1764017433024,-500.0,0.00030287,5]
[394849688,1764017433033,-3175.64,0.00030725,2]
[394849689,1764017433043,-822.0,0.00030824,2]
[394849690,1764017433053,-1599.0,0.00030824,2]
[394849691,1764017433062,-1192.0,0.00030824,2]
[394849692,1764017433072,-908.0,0.00030824,2]
[394849693,1764017433081,-659.0,0.00030824,2]
[394849694,1764017433090,-1256.0,0.00030824,2]
[394849695,1764017433100,-1000.0,0.00030835,5]
[394849696,1764017433109,-1000.0,0.00030835,5]
[394849697,1764017433118,-1000.0,0.00030835,5]
[394849698,1764017433127,-1000.0,0.00030835,5]
[394849699,1764017433137,-18353.21283272,0.00031359,2]
[394849700,1764017433146,-5808.0109099,0.00031373,2]
[394849701,1764017433156,-801.26249405,0.00031373,2]
[394849702,1764017433165,-161.35610772,0.00031373,15]
[394849703,1764017433174,-373.50394795,0.00031383,5]
[394849704,1764017433185,-314.87570651,0.00031383,5]
[394849705,1764017433198,-685.12429349,0.00031383,5]
[394849706,1764017433208,-521.19234435,0.00031383,5]
[394849707,1764017433217,-752.10773,0.00031397,2]
[394849708,1764017433226,-1994.57683916,0.00031451,3]
[394849709,1764017433241,-569.1863868,0.00031451,3]
[394849710,1764017437516,-606.201,0.00027824,2]
[394849711,1764017437525,-160.61865302,0.00031397,2]
[394849712,1764017437535,-151.0,0.00031397,2]
[394849713,1764017437545,-10927.33041334,0.00031451,3]
[394849714,1764017437556,-163.83,0.00031451,2]
[394849715,1764017437565,-500.0,0.0003146,2]
[394849716,1764017437575,-500.0,0.0003146,2]
[394849717,1764017437586,-500.0,0.0003146,2]
[394849718,1764017437595,-500.0,0.0003146,2]
[394849719,1764017437604,-500.0,0.0003146,2]
[394849720,1764017437613,-500.0,0.0003146,2]
[394849721,1764017437631,-500.0,0.0003146,2]
[394849722,1764017437643,-500.0,0.0003146,2]
[394849723,1764017437652,-500.0,0.0003146,2]
[394849724,1764017437662,-500.0,0.0003146,2]
[394849725,1764017437671,-500.0,0.0003146,2]
[394849726,1764017437680,-500.0,0.0003146,2]
[394849727,1764017437690,-500.0,0.0003146,2]
[394849728,1764017437699,-500.0,0.0003146,2]
[394849729,1764017437708,-12.07993364,0.0003146,2]
[394849743,1764017439626,-425.38025295,0.0003146,2]
[394849744,1764017439636,-415.86489805,0.0003146,2]
[394849745,1764017439840,-84.13510195,0.0003146,2]
[394849746,1764017439850,-260.02601103,0.0003146,2]
[394849747,1764017439862,-239.97398897,0.0003146,2]
[394849748,1764017439872,-500.0,0.0003146,2]
[394849749,1764017439881,-411.05885321,0.0003146,2]
[394849778,1764017443367,-250.0,0.00017,2]
[394849779,1764017443378,-88.94114679,0.0003146,2]
[394849780,1764017443387,-500.0,0.0003146,2]
[394849781,1764017443396,-500.0,0.0003146,2]
[394849782,1764017443406,-127.69078855,0.0003146,2]
[394849783,1764017443417,-372.30921145,0.0003146,2]
[394849784,1764017443427,-500.0,0.0003146,2]
[394849785,1764017443436,-151.0,0.0003146,2]
[394849786,1764017443446,-151.0,0.0003146,2]
[394849787,1764017443455,-1035.76997455,0.00031461,2]
[394849788,1764017443476,-1396.82961508,0.00031461,2]
[394849789,1764017443488,-357.35912126,0.00031461,2]
[394849790,1764017443694,-1182.12,0.00031461,2]
[394849791,1764017443706,-2018.73099543,0.00031461,2]
[394849798,1764017445638,-55219.16473455,0.00031461,2]
[394849800,1764017447151,-60567.27066417,0.00031461,2]
[394849801,1764017447163,-8467.25462014,0.00031461,2]
[394849840,1764017757010,303.67,0.00013699,2]
[394849841,1764017831208,-166.1215409,0.00042001,10]
[394849842,1764017831234,-729.66249715,0.00042001,10]
[394849843,1764017831258,-1065.21948829,0.00042001,15]
[394849844,1764017831283,-300.0,0.00042001,15]
[394849845,1764017831310,-625.35556694,0.00042001,10]
[394849846,1764017831335,-1000.0,0.00042001,10]
[394849847,1764017831360,-500.0,0.00042001,10]
[394849848,1764017831387,-232.92089817,0.00042001,14]
[394849849,1764017831411,-194.89518618,0.00042001,10]
[394849850,1764017831435,-275.0,0.00042001,14]
[394849851,1764017831460,-633.377727,0.00042001,14]
[394849852,1764017831486,-150.0,0.00042001,14]
[394849853,1764017831519,-27440.39159712,0.00042001,20]
[394849854,1764017831545,-1015.27650289,0.00042001,20]
[394849855,1764017831571,-171.91861443,0.00042001,10]
[394849856,1764017831596,-17399.517791,0.00042001,20]
[394849857,1764017831622,-4501.1467668,0.00042001,20]
[394849858,1764017831660,-353.88558182,0.00042001,20]
[394849859,1764017831881,-996613.75628858,0.00042001,30]
[394849860,1764017831910,-500.0,0.00042001,60]
[394849861,1764017831939,-13000.0,0.00042001,28]
[394849862,1764017831970,-184.35638795,0.00042001,60]
[394849863,1764017832003,-1000.0,0.00042001,30]
[394849864,1764017832039,-1256.0,0.00042001,30]
[394849865,1764017832070,-538.0,0.00042001,120]
[394849866,1764017832099,-428.0,0.00042001,30]
[394849867,1764017832127,-1000.0,0.00042001,30]
[394849868,1764017832154,-1000.0,0.00042001,30]
[394849869,1764017832182,-1000.0,0.00042001,30]
[394849870,1764017832208,-1000.0,0.00042001,30]
[394849871,1764017832234,-1000.0,0.00042001,30]
[394849872,1764017832260,-1000.0,0.00042001,30]
[394849873,1764017832289,-1000.0,0.00042001,30]
[394849874,1764017832314,-1000.0,0.00042001,30]
[394849875,1764017832339,-1000.0,0.00042001,30]
[394849876,1764017832365,-1000.0,0.00042001,30]
[394849877,1764017832391,-1000.0,0.00042001,60]
[394849878,1764017832416,-1000.0,0.00042001,30]
[394849879,1764017832440,-1000.0,0.00042001,30]
[394849880,1764017832467,-1000.0,0.00042001,30]
[394849881,1764017832491,-478.21511444,0.00042001,30]
[394849882,1764017832516,-1000.0,0.00042001,30]
[394849883,1764017832541,-1000.0,0.00042001,30]
[394849884,1764017832567,-1000.0,0.00042001,30]
[394849885,1764017832590,-1000.35938697,0.00042001,30]
[394849886,1764017832614,-861.98976472,0.00042001,30]
[394849887,1764017832644,-1000.0,0.00042001,30]
[394849888,1764017832670,-1000.0,0.00042001,30]
[394849889,1764017832697,-1000.0,0.00042001,120]
[394849890,1764017832723,-1000.0,0.00042001,60]
[394849891,1764017832748,-1000.0,0.00042001,30]
[394849892,1764017832774,-1000.0,0.00042001,60]
[394849893,1764017832801,-1000.0,0.00042001,60]
[394849894,1764017832826,-703.0,0.00042001,30]
[394849895,1764017832851,-301.0,0.00042001,120]
[394849896,1764017832876,-1000.0,0.00042001,30]
[394849897,1764017832900,-1000.0,0.00042001,60]
[394849898,1764017832926,-201.0,0.00042001,30]
[394849899,1764017832951,-1000.0,0.00042001,60]
[394849900,1764017832977,-1000.0,0.00042001,30]
[394849901,1764017833002,-200.0,0.00042001,30]
[394849902,1764017833027,-300.0,0.00042001,30]
[394849903,1764017833056,-312.90161007,0.00042001,30]
[394849904,1764017833082,-167.9243532,0.00042001,60]
[394849905,1764017833108,-1000.0,0.00042001,30]
[394849906,1764017833134,-1000.0,0.00042001,30]
[394849907,1764017833160,-1000.0,0.00042001,60]
[394849908,1764017833189,-1000.0,0.00042001,30]
[394849909,1764017833215,-1000.0,0.00042001,30]
[394849910,1764017833243,-1000.0,0.00042001,30]
[394849911,1764017833269,-1000.0,0.00042001,60]
[394849912,1764017833297,-1000.0,0.00042001,60]
[394849913,1764017833323,-1000.0,0.00042001,120]
[394849914,1764017833349,-1014.97659165,0.00042001,30]
[394849915,1764017833376,-1000.0,0.00042001,30]
[394849916,1764017833402,-360.65718439,0.00042001,60]
[394849917,1764017833428,-1000.0,0.00042001,30]
[394849918,1764017833454,-1000.0,0.00042001,60]
[394849919,1764017833480,-1000.0,0.00042001,30]
[394849920,1764017833505,-1000.0,0.00042001,60]
[394849921,1764017833531,-1000.0,0.00042001,30]
[394849922,1764017833556,-1000.0,0.00042001,60]
[394849923,1764017833580,-211.18927,0.00042001,60]
[394849924,1764017833605,-790.07195,0.00042001,60]
[394849925,1764017833637,-790.07195,0.00042001,60]
[394849926,1764017833662,-211.18927,0.00042001,60]
[394849927,1764017833688,-790.07195,0.00042001,60]
[394849928,1764017833714,-211.18927,0.00042001,60]
[394849929,1764017833739,-790.07195,0.00042001,60]
[394849930,1764017833765,-211.18927,0.00042001,60]
[394849931,1764017833793,-790.07195,0.00042001,60]
[394849932,1764017833819,-211.18927,0.00042001,60]
[394849933,1764017833844,-452.32362992,0.00042001,30]
[394849934,1764017833869,-464.25631927,0.00042001,120]
[394849935,1764017833895,-150.0,0.00042001,30]
[394849936,1764017833919,-749.73899812,0.00042001,120]
[394849937,1764017833944,-6387.9015247,0.00042001,35]
[394849938,1764017833969,-489.22501624,0.00042001,30]
[394849939,1764017833996,-801.634635,0.00042001,60]
[394849940,1764017834022,-165.20265906,0.00042001,30]
[394849941,1764017834047,-159.999989,0.00042001,120]
[394849942,1764017834074,-537.86806602,0.00042001,30]
[394849943,1764017834099,-616.88287545,0.00042001,60]
[394849944,1764017834125,-402.17896231,0.00042001,30]
[394849945,1764017834298,-339.30970385,0.00042001,91]
[394849946,1764017834326,-257.7646776,0.00042001,30]
[394849947,1764017834353,-922.43320196,0.00042001,30]
[394849948,1764017834381,-655.52209036,0.00042001,120]
[394849949,1764017834409,-1075.30832095,0.00042001,30]
[394849950,1764017834436,-434.03724778,0.00042001,120]
[394849951,1764017834462,-869.24929715,0.00042001,120]
[394849952,1764017834490,-554.68956789,0.00042001,120]
[394849953,1764017834516,-778.23734564,0.00042001,30]
[394849954,1764017834544,-252.28683523,0.00042001,120]
[394849955,1764017834572,-952.52743793,0.00042001,120]
[394849956,1764017834598,-324.79036217,0.00042001,30]
[394849957,1764017834624,-276.00377709,0.00042001,120]
[394849958,1764017834653,-446.999998,0.00042001,120]
[394849959,1764017834681,-1712.16865533,0.00042001,30]
[394849960,1764017834707,-224.34746954,0.00042001,30]
[394849961,1764017834733,-770.96551598,0.00042001,30]
[394849962,1764017834764,-243.02935437,0.00042001,120]
[394849963,1764017834791,-423.99203881,0.00042001,120]
[394849964,1764017834817,-213.67715225,0.00042001,120]
[394849965,1764017834843,-200.06957156,0.00042001,120]
[394849966,1764017834869,-1014.34728133,0.00042001,120]
[394849967,1764017834895,-186.43576408,0.00042001,120]
[394849968,1764017834922,-460.65749543,0.00042001,120]
[394849969,1764017834948,-903.33984146,0.00042001,30]
[394849970,1764017834975,-254.40069747,0.00042001,30]
[394849971,1764017835002,-912.16842885,0.00042001,30]
[394849972,1764017835028,-1001.80056517,0.00042001,30]
[394849973,1764017835056,-511.83917478,0.00042001,90]
[394849974,1764017835083,-879.7130918,0.00042001,120]
[394849975,1764017835111,-339.55055002,0.00042001,30]
[394849976,1764017835136,-982.53465672,0.00042001,30]
[394849977,1764017835165,-383.4422483,0.00042001,120]
[394849978,1764017835192,-392.68854425,0.00042001,120]
[394849979,1764017835218,-219.90273721,0.00042001,30]
[394849980,1764017835244,-685.34090711,0.00042001,30]
[394849981,1764017835271,-1015.33730597,0.00042001,30]
[394849982,1764017835297,-689.29476357,0.00042001,120]
[394849983,1764017835323,-743.10411747,0.00042001,120]
[394849984,1764017835349,-236.92090381,0.00042001,120]
[394849985,1764017835375,-370.98039979,0.00042001,30]
[394849986,1764017835400,-230.19729734,0.00042001,30]
[394849987,1764017835425,-156.47543597,0.00042001,120]
[394849988,1764017835450,-510.88250394,0.00042001,30]
[394849989,1764017835477,-161.46515641,0.00042001,120]
[394849990,1764017835502,-299.35111458,0.00042001,120]
[394849991,1764017835528,-1068.76330025,0.00042001,30]
[394849992,1764017835556,-520.16750305,0.00042001,120]
[394849993,1764017835581,-246.20305018,0.00042001,120]
[394849994,1764017835605,-869.26543253,0.00042001,120]
[394849995,1764017835635,-1325.5884782,0.00042001,120]
[394849996,1764017835662,-513.20455812,0.00042001,120]
[394849997,1764017835688,-150.28983069,0.00042001,120]
[394849998,1764017835714,-912.58972221,0.00042001,120]
[394849999,1764017835739,-805.5669348,0.00042001,120]
[394850000,1764017835764,-972.72587576,0.00042001,120]
[394850001,1764017835791,-1029.74792549,0.00042001,120]
[394850002,1764017835816,-1026.04991181,0.00042001,120]
[394850003,1764017835841,-512.3787867,0.00042001,30]
[394850004,1764017835866,-655.0648016,0.00042001,30]
[394850005,1764017835892,-997.0,0.00042001,30]
[394850006,1764017835918,-874.23737271,0.00042001,120]
[394850007,1764017835943,-355.93327993,0.00042001,31]
[394850008,1764017835968,-231.61332179,0.00042001,15]
[394850009,1764017835992,-244.35977815,0.00042001,30]
[394850010,1764017836017,-726.27085819,0.00042001,60]
[394850011,1764017836042,-742.06463495,0.00042001,30]
[394850012,1764017836067,-933.29416356,0.00042001,30]
[394850013,1764017836092,-907.7104769,0.00042001,30]
[394850014,1764017836117,-409.56763047,0.00042001,120]
[394850015,1764017836142,-785.62984447,0.00042001,120]
[394850016,1764017836167,-701.23131824,0.00042001,60]
[394850017,1764017836191,-215.46399536,0.00042001,30]
[394850018,1764017836216,-431.48733053,0.00042001,30]
[394850019,1764017836242,-285.21169616,0.00042001,30]
[394850020,1764017836268,-688.26274444,0.00042001,120]
[394850021,1764017836296,-814.98229487,0.00042001,120]
[394850022,1764017836321,-282.20826283,0.00042001,30]
[394850023,1764017836347,-198.33302432,0.00042001,30]
[394850024,1764017836373,-581.77992162,0.00042001,30]
[394850025,1764017836398,-240.83228998,0.00042001,90]
[394850026,1764017836423,-726.57534324,0.00042001,120]
[394850027,1764017836447,-215.36014029,0.00042001,31]
[394850028,1764017836472,-1393.29747508,0.00042001,120]
[394850029,1764017836498,-338.01153957,0.00042001,30]
[394850030,1764017836524,-480.99255137,0.00042001,120]
[394850031,1764017836549,-756.0,0.00042001,120]
[394850032,1764017836575,-481.45777922,0.00042001,30]
[394850033,1764017836602,-256.80111722,0.00042001,90]
[394850034,1764017836629,-765.323059,0.00042001,120]
[394850035,1764017836656,-270.46899658,0.00042001,120]
[394850036,1764017836683,-512.2249417,0.00042001,120]
[394850037,1764017836709,-236.79320992,0.00042001,120]
[394850038,1764017836738,-277.18393059,0.00042001,30]
[394850039,1764017836762,-959.48171913,0.00042001,120]
[394850040,1764017836923,-303.01270587,0.00042001,30]
[394850041,1764017836948,-1095.07032662,0.00042001,30]
[394850042,1764017836978,-194.42799703,0.00042001,120]
[394850043,1764017837005,-218.01251771,0.00042001,30]
[394850044,1764017837032,-195.78873401,0.00042001,120]
[394850045,1764017837061,-711.50614599,0.00042001,120]
[394850046,1764017837087,-498.96155539,0.00042001,60]
[394850047,1764017837112,-886.96308424,0.00042001,30]
[394850048,1764017837137,-793.50970876,0.00042001,120]
[394850049,1764017837163,-1139.34238222,0.00042001,120]
[394850050,1764017837189,-166.71047017,0.00042001,120]
[394850051,1764017837214,-299.17086959,0.00042001,120]
[394850052,1764017837240,-371.71273334,0.00042001,120]
[394850053,1764017837266,-640.67701811,0.00042001,30]
[394850054,1764017837293,-1060.0,0.00042001,120]
[394850055,1764017837324,-500.0,0.00042001,120]
[394850056,1764017837350,-669.12707929,0.00042001,30]
[394850057,1764017837377,-185.71425934,0.00042001,120]
[394850058,1764017837404,-161.49242916,0.00042001,120]
[394850059,1764017837431,-658.0,0.00042001,120]
[394850060,1764017837457,-250.03843561,0.00042001,30]
[394850061,1764017837483,-999.99999901,0.00042001,30]
[394850062,1764017837509,-718.28328819,0.00042001,60]
[394850063,1764017837534,-627.75,0.00042001,120]
[394850064,1764017837560,-670.0,0.00042001,120]
[394850065,1764017837586,-677.88229411,0.00042001,120]
[394850066,1764017837610,-400.0,0.00042001,30]
[394850067,1764017837639,-400.0,0.00042001,30]
[394850068,1764017837664,-400.0,0.00042001,30]
[394850069,1764017837690,-400.0,0.00042001,30]
[394850070,1764017837715,-400.0,0.00042001,30]
[394850071,1764017837740,-400.0,0.00042001,30]
[394850072,1764017837769,-400.0,0.00042001,30]
[394850073,1764017837795,-400.0,0.00042001,30]
[394850074,1764017837820,-400.0,0.00042001,30]
[394850075,1764017837845,-330.18303641,0.00042001,30]
[394850076,1764017837871,-1044.0,0.00042001,30]
[394850077,1764017837896,-432.240987,0.00042001,120]
[394850078,1764017837921,-344913.40657684,0.00042001,30]
[394850079,1764017837947,-200957.9729544,0.00042001,30]
[394850080,1764017837974,-1096.0,0.00042001,30]
[394850081,1764017837999,-1096.0,0.00042001,30]
[394850082,1764017838029,-1096.0,0.00042001,30]
[394850083,1764017838055,-1096.0,0.00042001,30]